bitfinex/quotes_BTCUSD_20250619
["timestamp","ask_amount","ask_price","bid_price","bid_amount"]
[1750360594410,0.90932346,104420.0,104410.0,0.53252605]
[1750360594615,0.88054546,104420.0,104410.0,0.53252605]
[1750360594845,0.88054537,104420.0,104410.0,0.53252605]
[1750360595280,0.88054537,104420.0,104410.0,0.51466322]
[1750360595527,0.88054537,104420.0,104410.0,0.53254334]
[1750360595746,0.89012143,104420.0,104410.0,0.53254334]
[1750360595963,0.88054537,104420.0,104410.0,0.53254334]
[1750360596199,0.89012143,104420.0,104410.0,0.53254334]
[1750360599541,0.89969768,104420.0,104410.0,0.53254334]
[1750360599758,0.89012143,104420.0,104410.0,0.53254334]
[1750360600016,0.89012143,104420.0,104410.0,0.53255018]
[1750360600228,0.89969768,104420.0,104410.0,0.53255018]
[1750360601326,0.89969768,104420.0,104410.0,0.53254992]
[1750360601532,0.89012143,104420.0,104410.0,0.53254992]
[1750360602987,0.89012143,104420.0,104410.0,0.53255005]
[1750360605298,0.88054537,104420.0,104410.0,0.53255005]
[1750360605515,0.89012143,104420.0,104410.0,0.53255005]
[1750360605733,0.88054537,104420.0,104410.0,0.53255005]
[1750360605951,0.89012143,104420.0,104410.0,0.53255005]
[1750360606583,0.89969768,104420.0,104410.0,0.53255005]
[1750360607031,0.89012143,104420.0,104410.0,0.53255005]
[1750360608550,0.89012143,104420.0,104410.0,0.53255618]
[1750360609213,0.88054537,104420.0,104410.0,0.53255618]
[1750360609432,0.37582869,104420.0,104410.0,0.53255618]
[1750360609676,0.37582869,104420.0,104410.0,1.06773698]
[1750360609677,0.03582869,104420.0,104410.0,1.06773698]
[1750360609907,0.003,104420.0,104410.0,1.15852277]
[1750360610365,0.5234495,104440.0,104430.0,0.26154211]
[1750360610366,0.8634495,104440.0,104430.0,0.26154211]
[1750360610586,0.8634495,104440.0,104430.0,0.530274]
[1750360611053,0.8351408,104440.0,104430.0,0.530274]
[1750360611200,0.8351408,104440.0,104430.0,0.570314]
[1750360612248,0.8351408,104440.0,104430.0,0.571314]
[1750360613261,0.8351408,104440.0,104430.0,0.573314]
[1750360614536,1.61139812,104440.0,104430.0,0.51412343]
[1750360614765,1.61139812,104440.0,104430.0,0.07176866]
[1750360614766,1.61139876,104440.0,104430.0,0.07176866]
[1750360614975,1.61139876,104440.0,104430.0,0.02089296]
[1750360615185,0.85429008,104440.0,104430.0,0.3669688]
[1750360615434,1.04578759,104440.0,104430.0,0.3775445]
[1750360615645,1.04578759,104440.0,104430.0,0.4090201]
[1750360615852,1.03621309,104440.0,104430.0,0.3984445]
[1750360616268,1.03621309,104440.0,104430.0,0.4060201]
[1750360617142,1.03621309,104440.0,104430.0,0.3964445]
[1750360617356,1.52377911,104440.0,104430.0,0.17345296]
[1750360618203,1.52477911,104440.0,104430.0,0.17345296]
[1750360618862,0.53449751,104440.0,104430.0,0.17345296]
[1750360619075,1.52477911,104440.0,104430.0,0.17345296]
[1750360619499,1.52477911,104440.0,104430.0,0.3649688]
[1750360619739,1.52477911,104440.0,104430.0,0.3841201]
[1750360620156,1.55355111,104440.0,104430.0,0.3745445]
[1750360620369,1.05841031,104440.0,104430.0,0.3745445]
[1750360620628,1.05841031,104440.0,104430.0,0.3649688]
[1750360621265,1.55355111,104440.0,104430.0,0.37454459]
[1750360621868,1.55355111,104440.0,104430.0,0.17347939]
[1750360622071,1.55355111,104440.0,104430.0,0.01791939]
[1750360622284,1.55355111,104440.0,104430.0,0.37457102]
[1750360622520,1.55355111,104440.0,104430.0,0.38414672]
[1750360622723,1.55355111,104440.0,104430.0,0.41582232]
[1750360622939,1.05841031,104440.0,104430.0,0.43497325]
[1750360623178,1.05841031,104440.0,104430.0,0.55055172]
[1750360623603,1.05841031,104440.0,104430.0,0.55055126]
[1750360623805,1.07755978,104440.0,104430.0,0.55055126]
[1750360624013,1.08713419,104440.0,104430.0,0.55055081]
[1750360624227,0.38134614,104440.0,104430.0,0.55055081]
[1750360624471,0.8381408,104440.0,104430.0,0.55055081]
[1750360624692,0.003,104440.0,104430.0,1.08573161]
[1750360624901,0.003,104440.0,104430.0,0.60513166]
[1750360625139,0.003,104440.0,104430.0,0.6813766]
[1750360625573,0.002,104440.0,104430.0,0.68137565]
[1750360625796,0.33590448,104450.0,104440.0,0.26442102]
[1750360626002,0.33590448,104450.0,104440.0,0.37761839]
[1750360626647,0.3975279,104470.0,104460.0,0.24037886]
[1750360626648,0.37838439,104470.0,104460.0,0.24037886]
[1750360626863,0.8639538,104470.0,104460.0,0.53093623]
[1750360627310,0.5239538,104470.0,104460.0,0.53093623]
[1750360627522,0.8639538,104470.0,104460.0,0.53093623]
[1750360627735,0.84476219,104470.0,104460.0,0.53093623]
[1750360628168,0.54289534,104470.0,104460.0,0.53093623]
[1750360628396,0.02861158,104470.0,104460.0,0.53091771]
[1750360628600,0.86375238,104470.0,104460.0,0.53091771]
[1750360629021,0.87332368,104470.0,104460.0,0.53091771]
[1750360629228,0.86375238,104470.0,104460.0,0.53091771]
[1750360629442,0.87332368,104470.0,104460.0,0.53091771]
[1750360629739,0.86575238,104470.0,104460.0,0.53091771]
[1750360629971,0.87332368,104470.0,104460.0,0.53091771]
[1750360630663,0.86375238,104470.0,104460.0,0.53091771]
[1750360630886,0.86375238,104470.0,104460.0,0.51301779]
[1750360631104,0.87332377,104470.0,104460.0,0.51301779]
[1750360631559,0.36861158,104470.0,104460.0,0.51301779]
[1750360631806,0.34005,104470.0,104460.0,0.51301779]
[1750360632687,0.02886399,104470.0,104460.0,0.51301779]
[1750360633368,5e-05,104470.0,104460.0,0.51301779]
[1750360633854,5e-05,104470.0,104460.0,0.52755864]
[1750360636365,5e-05,104470.0,104460.0,1.02269944]
[1750360638577,0.4951908,104470.0,104460.0,0.35705779]
[1750360638803,0.4951908,104470.0,104460.0,0.55329779]
[1750360639470,0.4951908,104470.0,104460.0,0.55729779]
[1750360640177,0.4951908,104470.0,104460.0,0.36105779]
[1750360640396,5e-05,104470.0,104460.0,0.55741779]
[1750360640831,0.4951908,104470.0,104460.0,0.55741779]
[1750360641932,5e-05,104470.0,104460.0,0.55741779]
[1750360643032,0.4951908,104470.0,104460.0,0.55729779]
[1750360643775,0.5047621,104470.0,104460.0,0.55729779]
[1750360644021,1.5504891,104470.0,104460.0,0.09927893]
[1750360644256,1.59107676,104470.0,104460.0,0.16008]
[1750360644464,1.09494191,104470.0,104460.0,0.35154084]
[1750360644903,1.09494191,104470.0,104460.0,0.36111369]
[1750360645118,1.09494191,104470.0,104460.0,0.35711369]
[1750360645548,1.09494191,104470.0,104460.0,0.36668645]
[1750360646391,1.07454191,104470.0,104460.0,0.36668645]
[1750360646808,1.08411394,104470.0,104460.0,0.37625894]
[1750360647021,1.09368606,104470.0,104460.0,0.38583134]
[1750360648423,0.368815,104470.0,104460.0,0.50221027]
[1750360648645,0.85433367,104470.0,104460.0,0.52301027]
[1750360648851,0.8447621,104470.0,104460.0,0.52301027]
[1750360649513,0.85433358,104470.0,104460.0,0.52301027]
[1750360649717,0.86390515,104470.0,104460.0,0.50221027]
[1750360649918,0.873477,104470.0,104460.0,0.34613027]
[1750360650118,0.88304894,104470.0,104460.0,0.48119027]
[1750360650578,0.86390515,104470.0,104460.0,0.48119027]
[1750360650785,0.8734769,104470.0,104460.0,0.48119027]
[1750360650995,0.8734769,104470.0,104460.0,0.50189027]
[1750360651232,0.88304884,104470.0,104460.0,0.50189027]
[1750360651783,1.07449217,104470.0,104460.0,0.48119027]
[1750360651974,1.06492069,104470.0,104460.0,0.29631262]
[1750360652175,1.08632069,104470.0,104460.0,0.45247262]
[1750360652379,1.08632069,104470.0,104460.0,0.28673977]
[1750360652598,1.08307737,104470.0,104460.0,0.15612]
[1750360653061,1.06717737,104470.0,104460.0,0.15612]
[1750360654046,1.09594137,104470.0,104460.0,0.15612]
[1750360655134,1.07454137,104470.0,104460.0,0.35715379]
[1750360655377,1.07454137,104470.0,104460.0,0.36672664]
[1750360656688,1.07454137,104470.0,104460.0,0.3762994]
[1750360657360,1.07454137,104470.0,104460.0,0.36672664]
[1750360658440,1.07454137,104470.0,104460.0,0.3762994]
[1750360658652,1.04577737,104470.0,104460.0,0.3762994]
[1750360659380,1.04577737,104470.0,104440.0,0.0422]
[1750360659381,0.55062644,104450.0,104440.0,0.0422]
[1750360659621,0.37829756,104440.0,104430.0,0.3369214]
[1750360659860,0.87343836,104440.0,104430.0,0.50245682]
[1750360660092,0.86386358,104440.0,104430.0,0.51203197]
[1750360660305,0.87343827,104440.0,104430.0,0.51203197]
[1750360661558,0.85428899,104440.0,104430.0,0.51203197]
[1750360661775,0.87343791,104440.0,104430.0,0.51203197]
[1750360661994,0.87343781,104440.0,104430.0,0.51603197]
[1750360662431,0.85428899,104440.0,104430.0,0.51603197]
[1750360662668,0.34,104440.0,104430.0,0.53793197]
[1750360662940,0.5430577,104450.0,104440.0,0.26240398]
[1750360662941,0.51428733,104450.0,104440.0,0.26240398]
[1750360663146,0.01914644,104450.0,104440.0,0.35768291]
[1750360663387,0.51428724,104450.0,104440.0,0.35768291]
[1750360663617,0.52386074,104450.0,104440.0,0.35768291]
[1750360664214,0.53343442,104450.0,104440.0,0.35768291]
[1750360664466,0.52386083,104450.0,104440.0,0.35768291]
[1750360665549,0.5334346,104450.0,104440.0,0.35768291]
[1750360665979,0.52386083,104450.0,104440.0,0.35768291]
[1750360666200,0.53343451,104450.0,104440.0,0.35768291]
[1750360667011,0.52386083,104450.0,104440.0,0.35768291]
[1750360668255,0.5334346,104450.0,104440.0,0.35768291]
[1750360668477,0.52386083,104450.0,104440.0,0.35768291]
[1750360668646,0.5334346,104450.0,104440.0,0.35768291]
[1750360671010,0.29803272,104450.0,104440.0,0.35768291]
[1750360671606,0.30760603,104450.0,104440.0,0.35768291]
[1750360672613,0.31717916,104450.0,104440.0,0.35768291]
[1750360674266,0.30760539,104450.0,104440.0,0.35768291]
[1750360674474,0.31717907,104450.0,104440.0,0.35768291]
[1750360674686,0.32675284,104450.0,104440.0,0.35768291]
[1750360675135,0.30760539,104450.0,104440.0,0.35768291]
[1750360675543,0.87347965,104460.0,104450.0,0.03167386]
[1750360675750,1.58879986,104460.0,104450.0,0.51421895]
[1750360676677,0.85528568,104460.0,104450.0,0.52379226]
[1750360677058,0.86485853,104460.0,104450.0,0.52379226]
[1750360677373,0.86485844,104460.0,104450.0,0.52379226]
[1750360677589,0.87443129,104460.0,104450.0,0.52379226]
[1750360677812,0.37929049,104460.0,104450.0,0.52379226]
[1750360678069,0.87443129,104460.0,104450.0,0.52379226]
[1750360678500,1.07546517,104460.0,104450.0,0.52379226]
[1750360678710,1.06789287,104460.0,104450.0,0.50464555]
[1750360679138,0.86685899,104460.0,104450.0,0.51421886]
[1750360679562,1.05831983,104460.0,104450.0,0.51421886]
[1750360679768,1.07746582,104460.0,104450.0,0.51421886]
[1750360679983,0.87643194,104460.0,104450.0,0.51421886]
[1750360680408,1.06789278,104460.0,104450.0,0.51421886]
[1750360680619,1.06789324,104460.0,104450.0,0.50464555]
[1750360680834,1.05832048,104460.0,104450.0,0.50464555]
[1750360681911,1.05832048,104460.0,104450.0,0.51421905]
[1750360682534,0.86685964,104460.0,104450.0,0.52379236]
[1750360682997,0.85728623,104460.0,104450.0,0.52379236]
[1750360683213,1.05832002,104460.0,104450.0,0.51421905]
[1750360684777,0.86685918,104460.0,104450.0,0.52379236]
[1750360685652,0.85728623,104460.0,104450.0,0.52379236]
[1750360686678,0.86685844,104460.0,104450.0,0.52379236]
[1750360687179,0.87643129,104460.0,104450.0,0.52379236]
[1750360687450,0.8477132,104460.0,104450.0,0.52379236]
[1750360687943,0.85728578,104460.0,104450.0,0.52379236]
[1750360688403,0.86685854,104460.0,104450.0,0.52379236]
[1750360688623,0.85728578,104460.0,104450.0,0.52379236]
[1750360688838,0.86685845,104460.0,104450.0,0.52379236]
[1750360689291,0.85728578,104460.0,104450.0,0.52379236]
[1750360689589,0.86685854,104460.0,104450.0,0.52379236]
[1750360690057,0.85728578,104460.0,104450.0,0.52379236]
[1750360690498,0.343,104460.0,104450.0,0.52379236]
[1750360691175,0.8381408,104460.0,104450.0,0.52379236]
[1750360691616,0.86685853,104460.0,104450.0,0.52379236]
[1750360692058,0.86685853,104460.0,104450.0,0.36775236]
[1750360692275,0.85728568,104460.0,104450.0,0.52379236]
[1750360692490,0.86685835,104460.0,104450.0,0.52379236]
[1750360693168,0.86585835,104460.0,104450.0,0.52379236]
[1750360693859,1.05731919,104460.0,104450.0,0.36775236]
[1750360694075,0.8754312,104460.0,104450.0,0.52375236]
[1750360694290,1.06689204,104460.0,104450.0,0.49503196]
[1750360694504,1.06689204,104460.0,104450.0,0.51417895]
[1750360694954,1.06489204,104460.0,104450.0,0.51417895]
[1750360695170,0.8351408,104460.0,104450.0,0.52375226]
[1750360695380,0.85428541,104460.0,104450.0,0.52375226]
[1750360696350,0.35914461,104460.0,104450.0,0.52375226]
[1750360696578,0.85428541,104460.0,104450.0,0.52375226]
[1750360698309,0.85428541,104460.0,104450.0,0.52371226]
[1750360698512,0.84471301,104460.0,104450.0,0.52371226]
[1750360698792,0.34,104460.0,104450.0,0.52371226]
[1750360698992,0.34957221,104460.0,104450.0,0.52371226]
[1750360699282,0.84471301,104460.0,104450.0,0.52371226]
[1750360700657,0.34,104460.0,104450.0,0.52371226]
[1750360705090,5e-05,104470.0,104460.0,0.26297886]
[1750360705314,0.34005,104470.0,104460.0,0.35825779]
[1750360706270,0.86390533,104470.0,104460.0,0.35825779]
[1750360706506,1.06691987,104470.0,104460.0,0.46180548]
[1750360706735,1.07950534,104470.0,104460.0,0.156]
[1750360706950,1.07950534,104470.0,104460.0,0.34746084]
[1750360707396,1.08050534,104470.0,104460.0,0.156]
[1750360707840,1.08050534,104470.0,104460.0,0.34746084]
[1750360708069,1.08050534,104470.0,104460.0,0.36660664]
[1750360709007,1.08050534,104470.0,104460.0,0.36664664]
[1750360710826,1.08050534,104470.0,104460.0,0.35707388]
[1750360711527,1.03920534,104470.0,104460.0,0.37621949]
[1750360711755,0.84776255,104470.0,104460.0,0.39536456]
[1750360711984,0.876478,104470.0,104460.0,0.39536456]
[1750360712290,0.86690597,104470.0,104460.0,0.39536456]
[1750360712959,0.86690597,104470.0,104460.0,0.41696456]
[1750360713420,0.01262139,104470.0,104460.0,0.53404349]
[1750360714080,0.51733376,104470.0,104460.0,0.53404349]
[1750360714736,0.51433376,104470.0,104460.0,0.53404349]
[1750360716860,0.51433385,104470.0,104460.0,0.53404349]
[1750360717078,0.51433376,104470.0,104460.0,0.53404349]
[1750360717289,0.50476219,104470.0,104460.0,0.53404349]
[1750360717505,0.51433367,104470.0,104460.0,0.53404349]
[1750360717739,0.5047621,104470.0,104460.0,0.53404349]
[1750360719062,0.4951908,104470.0,104460.0,0.53404349]
[1750360720258,0.50476219,104470.0,104460.0,0.53404349]
[1750360720490,0.5047621,104470.0,104460.0,0.53404349]
[1750360720921,0.4951908,104470.0,104460.0,0.53404349]
[1750360722359,0.50476219,104470.0,104460.0,0.53404349]
[1750360723846,0.4951908,104470.0,104460.0,0.53404349]
[1750360726173,0.5374908,104470.0,104460.0,0.29631281]
[1750360726380,0.36871764,104460.0,104450.0,0.20105303]
[1750360726612,0.55062653,104450.0,104440.0,0.09527893]
[1750360726841,1.04576733,104450.0,104440.0,0.25107893]
[1750360727043,1.04576733,104450.0,104440.0,0.2606538]
[1750360727277,1.04576733,104450.0,104440.0,0.09527893]
[1750360727451,1.07453533,104450.0,104440.0,0.25123893]
[1750360728279,1.07453533,104450.0,104440.0,0.44273644]
[1750360728489,1.07453533,104450.0,104440.0,0.45231131]
[1750360728922,1.06496174,104450.0,104440.0,0.2608138]
[1750360729545,1.06496174,104450.0,104440.0,0.45231131]
[1750360729759,1.06496174,104450.0,104440.0,0.47146078]
[1750360730154,1.06496174,104450.0,104440.0,0.46188609]
[1750360730360,1.06496174,104450.0,104440.0,0.46180609]
[1750360731176,1.06496174,104450.0,104440.0,0.45223131]
[1750360732352,1.05538797,104450.0,104440.0,0.25115893]
[1750360732560,1.05538797,104450.0,104440.0,0.09527893]
[1750360732978,1.05538797,104450.0,104440.0,0.25111893]
[1750360739702,0.54107229,104440.0,104430.0,0.0432]
[1750360739939,0.54107229,104440.0,104420.0,0.25147065]
[1750360739940,0.19151584,104430.0,104420.0,0.25147065]
[1750360740160,0.68665664,104430.0,104420.0,0.50250958]
[1750360740392,1.04580748,104430.0,104420.0,0.13607893]
[1750360740607,1.03623243,104430.0,104420.0,0.33718981]
[1750360740826,1.03623243,104430.0,104420.0,0.49302981]
[1750360741751,1.03623243,104430.0,104420.0,0.50260624]
[1750360742870,1.03623243,104430.0,104420.0,0.50260642]
[1750360743085,1.03623243,104430.0,104420.0,0.51218285]
[1750360744205,1.03623243,104430.0,104420.0,0.50260642]
[1750360745481,1.03623243,104430.0,104420.0,0.29191893]
[1750360745700,1.02665664,104430.0,104420.0,0.48345311]
[1750360745915,1.02665664,104430.0,104420.0,0.49302981]
[1750360746355,0.53151584,104430.0,104420.0,0.51218276]
[1750360746595,1.03623243,104430.0,104420.0,0.5217591]
[1750360749759,1.03623243,104430.0,104420.0,0.51218276]
[1750360749975,1.03623243,104430.0,104420.0,0.50260633]
[1750360750651,1.03623243,104430.0,104420.0,0.49318981]
[1750360751105,1.03623243,104430.0,104420.0,0.50276642]
[1750360752287,1.03623243,104430.0,104420.0,0.25148749]
[1750360752516,1.02665664,104430.0,104410.0,0.2534064]
[1750360752747,0.8351408,104420.0,104410.0,0.34868533]
[1750360752893,0.85429375,104420.0,104410.0,0.51422286]
[1750360753727,1.06498097,104420.0,104410.0,0.49502908]
[1750360753945,1.05540463,104420.0,104410.0,0.49502908]
[1750360754156,1.05540463,104420.0,104410.0,0.50460661]
[1750360754392,1.09428669,104420.0,104410.0,0.51418396]
[1750360754599,1.09428669,104420.0,104410.0,0.51618396]
[1750360754812,1.09428669,104420.0,104410.0,0.51418396]
[1750360756487,1.09428669,104420.0,104410.0,0.52376112]
[1750360756858,1.09428669,104420.0,104410.0,0.53333755]
[1750360758329,1.09428669,104420.0,104410.0,0.52376057]
[1750360758541,1.09428669,104420.0,104410.0,0.5141835]
[1750360758656,1.09428669,104420.0,104410.0,0.50460634]
[1750360759319,1.08471026,104420.0,104410.0,0.50452634]
[1750360759761,1.08471026,104420.0,104410.0,0.52244033]
[1750360760010,1.08471026,104420.0,104410.0,0.53201758]
[1750360760972,1.08471026,104420.0,104410.0,0.54159474]
[1750360761394,1.08471026,104420.0,104410.0,0.37617758]
[1750360761604,1.08471026,104420.0,104410.0,0.36660033]
[1750360761803,1.08471026,104420.0,104410.0,0.51282298]
[1750360762011,1.08471026,104420.0,104410.0,0.52240042]
[1750360762240,1.08471026,104420.0,104410.0,0.53197767]
[1750360762859,1.08471026,104420.0,104410.0,0.53197842]
[1750360763322,1.08471026,104420.0,104410.0,0.4175048]
[1750360763883,1.11348826,104420.0,104410.0,0.4175048]
[1750360764075,1.10391174,104420.0,104410.0,0.4175048]
[1750360765495,1.10391174,104420.0,104410.0,0.01791474]
[1750360765496,1.19918159,104420.0,104410.0,0.01791474]
[1750360765760,1.19918159,104420.0,104410.0,0.17363474]
[1750360765761,6.32024064,104420.0,104410.0,0.17363474]
[1750360766007,6.32161804,104420.0,104410.0,0.17363474]
[1750360766525,6.81675884,104420.0,104410.0,0.01154174]
[1750360766769,0.35915808,104390.0,104380.0,0.27023691]
[1750360767016,0.85429888,104390.0,104380.0,0.52147584]
[1750360767644,0.8542987,104390.0,104380.0,0.52147584]
[1750360767847,0.86387797,104390.0,104380.0,0.36551584]
[1750360768070,0.86387797,104390.0,104380.0,0.51193629]
[1750360768342,0.86387797,104390.0,104380.0,0.51393629]
[1750360768555,0.86387797,104390.0,104380.0,0.51593629]
[1750360769210,0.86387797,104390.0,104380.0,0.3503572]
[1750360769211,1.06504656,104390.0,104380.0,0.3503572]
[1750360769424,1.06504656,104390.0,104380.0,0.51589712]
[1750360769662,0.87345733,104390.0,104380.0,0.56627685]
[1750360770984,0.3591579,104390.0,104380.0,0.56627685]
[1750360771195,0.85429861,104390.0,104380.0,0.37003685]
[1750360771403,0.85429861,104390.0,104380.0,0.52599685]
[1750360772050,0.84471961,104390.0,104380.0,0.52599685]
[1750360772276,0.368782,104400.0,104390.0,0.26112649]
[1750360772506,0.34,104400.0,104390.0,0.85154622]
[1750360772724,0.34,104400.0,104390.0,0.35640542]
[1750360773394,0.54307276,104410.0,104400.0,0.2618054]
[1750360773665,0.55265011,104410.0,104400.0,0.51308433]
[1750360773883,0.54307276,104410.0,104400.0,0.51308433]
[1750360774098,0.55265001,104410.0,104400.0,0.51308433]
[1750360774308,0.50471805,104410.0,104400.0,0.51308433]
[1750360774534,0.50471787,104410.0,104400.0,0.51308433]
[1750360774717,0.50571787,104410.0,104400.0,0.51308433]
[1750360774935,0.70684765,104410.0,104400.0,0.34750643]
[1750360775152,0.72800198,104410.0,104400.0,0.51316451]
[1750360776206,1.06800198,104410.0,104400.0,0.51316451]
[1750360776414,1.06800198,104410.0,104400.0,0.5227425]
[1750360777054,1.06800198,104410.0,104400.0,0.51316451]
[1750360777269,1.06800198,104410.0,104400.0,0.5227425]
[1750360777500,0.88602698,104410.0,104400.0,0.5227425]
[1750360777722,1.07757951,104410.0,104400.0,0.5323204]
[1750360777941,0.88602698,104410.0,104400.0,0.5323204]
[1750360778360,1.06800317,104410.0,104400.0,0.20114933]
[1750360778579,1.07782592,104410.0,104400.0,0.38492127]
[1750360778812,1.05842592,104410.0,104400.0,0.38492127]
[1750360779473,1.04884848,104410.0,104400.0,0.37534301]
[1750360780127,1.04884848,104410.0,104400.0,0.22864137]
[1750360780354,1.04884848,104410.0,104400.0,0.39446321]
[1750360781909,1.04884848,104410.0,104400.0,0.38488495]
[1750360782137,1.04884848,104410.0,104400.0,0.37530659]
[1750360782348,1.04884848,104410.0,104400.0,0.35746933]
[1750360783237,1.04884848,104410.0,104400.0,0.15632]
[1750360783458,1.06007095,104410.0,104400.0,0.15632]
[1750360783684,1.03927095,104410.0,104400.0,0.36704787]
[1750360784333,1.03927095,104410.0,104400.0,0.37662623]
[1750360786397,1.03927095,104410.0,104400.0,0.39455527]
[1750360787060,0.55370695,104410.0,104400.0,0.41371152]
[1750360787289,0.86687266,104410.0,104400.0,0.45391088]
[1750360787507,1.06800272,104410.0,104400.0,0.45391088]
[1750360788398,0.343,104410.0,104400.0,0.54918981]
[1750360788616,0.36215387,104410.0,104400.0,0.54918981]
[1750360788832,0.86687192,104410.0,104400.0,0.53126077]
[1750360789076,0.86687192,104410.0,104400.0,0.54919089]
[1750360789292,0.86687183,104410.0,104400.0,0.54919089]
[1750360789740,0.87644908,104410.0,104400.0,0.54919089]
[1750360790858,0.87644909,104410.0,104400.0,0.54911089]
[1750360791075,0.88602671,104410.0,104400.0,0.529955]
[1750360791302,1.07757924,104410.0,104400.0,0.53953317]
[1750360791515,1.07757924,104410.0,104400.0,0.54911125]
[1750360791854,0.88602662,104410.0,104400.0,0.54911343]
[1750360792259,1.06800308,104410.0,104400.0,0.52995736]
[1750360792476,1.06800308,104410.0,104400.0,0.53953544]
[1750360792690,1.05842592,104410.0,104400.0,0.53953544]
[1750360793622,1.05842592,104410.0,104400.0,0.53949544]
[1750360794516,1.05842592,104410.0,104400.0,0.54907343]
[1750360794734,1.05842592,104410.0,104400.0,0.54908224]
[1750360796007,1.05842592,104410.0,104400.0,0.52992617]
[1750360796219,1.05842592,104410.0,104400.0,0.48972617]
[1750360796433,1.05842592,104410.0,104400.0,0.47052974]
[1750360796662,0.71542592,104410.0,104400.0,0.480108]
[1750360797082,0.70584848,104410.0,104400.0,0.480108]
[1750360797531,0.70584848,104410.0,104400.0,0.48006932]
[1750360797749,0.70584848,104410.0,104400.0,0.48007472]
[1750360801444,1.04584848,104410.0,104400.0,0.48965289]
[1750360801662,1.04584848,104410.0,104400.0,0.51933097]
[1750360801880,1.04584848,104410.0,104400.0,0.53953097]
[1750360802304,1.04584848,104410.0,104400.0,0.52158268]
[1750360802527,1.04584848,104410.0,104400.0,0.53954545]
[1750360803385,1.04584848,104410.0,104400.0,0.53954967]
[1750360803806,1.04584848,104410.0,104400.0,0.01796699]
[1750360803807,1.03627095,104410.0,104400.0,0.01796699]
[1750360804023,6.68730398,104410.0,104400.0,0.01796699]
[1750360804286,6.70920398,104410.0,104400.0,0.01796699]
[1750360804481,6.74034043,104410.0,104400.0,0.1740089]
[1750360804948,6.11879333,104410.0,104400.0,0.1740089]
[1750360806279,6.09689333,104410.0,104400.0,0.1740089]
[1750360808015,1.02669333,104410.0,104400.0,0.36557978]
[1750360808876,1.02669333,104410.0,104400.0,0.15604]
[1750360809344,1.02669333,104410.0,104400.0,0.34761088]
[1750360809559,1.02669333,104410.0,104400.0,0.15604]
[1750360810018,1.02669333,104410.0,104400.0,0.1739901]
[1750360810452,1.04839333,104410.0,104400.0,0.1739901]
[1750360810885,1.04839333,104410.0,104400.0,0.17399019]
[1750360811551,1.02669333,104410.0,104400.0,0.17399019]
[1750360813525,1.02669333,104410.0,104400.0,0.36556107]
[1750360813742,1.02669333,104410.0,104400.0,0.41763952]
[1750360814175,1.02669333,104410.0,104400.0,0.38726107]
[1750360815035,1.02669333,104410.0,104400.0,0.36556107]
[1750360816589,1.04799333,104410.0,104400.0,0.17399019]
[1750360816805,1.11341044,104410.0,104400.0,0.17399019]
[1750360817012,1.02669333,104410.0,104400.0,0.17398982]
[1750360819748,1.02669333,104410.0,104400.0,0.17399011]
[1750360826164,1.02669333,104410.0,104400.0,0.15604]
[1750360826972,1.02669333,104410.0,104400.0,0.17399954]
[1750360827602,1.12196318,104410.0,104400.0,0.17399954]
[1750360827809,1.02669333,104410.0,104400.0,0.17399954]
[1750360828778,1.02669333,104410.0,104400.0,0.17400315]
[1750360829716,1.02669333,104410.0,104400.0,0.17400314]
[1750360832499,1.02669333,104410.0,104400.0,0.41815247]
[1750360833103,1.02669333,104410.0,104400.0,0.40857402]
[1750360833432,1.02669333,104410.0,104400.0,0.21700314]
[1750360834205,1.02669333,104410.0,104400.0,0.21700818]
[1750360834654,0.34,104410.0,104400.0,0.40857906]
[1750360834856,0.34,104410.0,104400.0,0.53259251]
[1750360835060,0.34,104410.0,104400.0,0.53259305]
[1750360835432,0.8351408,104410.0,104400.0,0.53259305]
[1750360836908,0.83583562,104410.0,104400.0,0.53259305]
[1750360838374,0.83583562,104410.0,104400.0,0.53459305]
[1750360839033,0.83581389,104410.0,104400.0,0.53459305]
[1750360839875,0.34,104410.0,104400.0,0.53459305]
[1750360841610,0.34,104410.0,104400.0,0.5325577]
[1750360842009,0.34,104410.0,104400.0,0.5355577]
[1750360842776,0.34,104410.0,104400.0,0.51962433]
[1750360842986,0.34,104410.0,104400.0,0.53755656]
[1750360846292,0.34,104410.0,104400.0,0.51962433]
[1750360850096,0.34957689,104410.0,104400.0,0.51962433]
[1750360850292,0.86454501,104410.0,104400.0,0.51938433]
[1750360850699,0.85496776,104410.0,104400.0,0.51938433]
[1750360851259,0.86454492,104410.0,104400.0,0.51938433]
[1750360851473,0.51496776,104410.0,104400.0,0.51938433]
[1750360851684,0.52454492,104410.0,104400.0,0.51938433]
[1750360851885,0.52454483,104410.0,104400.0,0.51938433]
[1750360852298,0.51496776,104410.0,104400.0,0.51938433]
[1750360852509,0.50539078,104410.0,104400.0,0.51938433]
[1750360852677,0.49581389,104410.0,104400.0,0.51938433]
[1750360852891,0.50539078,104410.0,104400.0,0.51938433]
[1750360853096,0.24956943,104420.0,104410.0,0.26218457]
[1750360853258,0.74538332,104420.0,104410.0,0.3574635]
[1750360853898,0.74538332,104420.0,104410.0,0.34788643]
[1750360854115,0.74538332,104420.0,104410.0,0.3574635]
[1750360854289,0.74538332,104420.0,104410.0,0.34788643]
[1750360854501,1.08538332,104420.0,104410.0,0.35746368]
[1750360854718,1.08538332,104420.0,104410.0,0.36704084]
[1750360855350,1.08538332,104420.0,104410.0,0.37661791]
[1750360855972,1.08538332,104420.0,104410.0,0.36704084]
[1750360856402,1.08538332,104420.0,104410.0,0.35746368]
[1750360856809,1.08538332,104420.0,104410.0,0.32678652]
[1750360857429,1.08538332,104420.0,104410.0,0.33636387]
[1750360858541,1.08538332,104420.0,104410.0,0.34594112]
[1750360858915,0.90342514,104420.0,104410.0,0.35551819]
[1750360859115,0.90342514,104420.0,104410.0,0.34594112]
[1750360859347,0.90342514,104420.0,104410.0,0.35551828]
[1750360859669,1.09495932,104420.0,104410.0,0.34594112]
[1750360859889,0.90342514,104420.0,104410.0,0.35551764]
[1750360860518,0.90342514,104420.0,104410.0,0.37661764]
[1750360862851,1.39928891,104420.0,104410.0,0.37661764]
[1750360863273,1.59082309,104420.0,104410.0,0.37661764]
[1750360864193,1.39928891,104420.0,104410.0,0.37661764]
[1750360865101,1.59082309,104420.0,104410.0,0.37661764]
[1750360865332,1.60039979,104420.0,104410.0,0.37661764]
[1750360865827,1.60039979,104420.0,104410.0,0.33471764]
[1750360866058,1.60039979,104420.0,104410.0,0.32514066]
[1750360866300,1.60039979,104420.0,104410.0,0.48090066]
[1750360866780,1.60039979,104420.0,104410.0,0.49047773]
[1750360866992,1.60039979,104420.0,104410.0,0.49047727]
[1750360867198,1.60039979,104420.0,104410.0,0.51127727]
[1750360867430,1.60039979,104420.0,104410.0,0.53177727]
[1750360868126,1.39928891,104420.0,104410.0,0.53177727]
[1750360869329,1.59082309,104420.0,104410.0,0.53177727]
[1750360869751,1.2023646,104420.0,104410.0,0.53177727]
[1750360870420,1.01083042,104420.0,104410.0,0.53177727]
[1750360870629,1.02040685,104420.0,104410.0,0.53177727]